fUST/lending_fUST_20241228
["ID","MTS","AMOUNT","RATE_DAILY","PERIOD"]
[346899482,1735351753567,-505.37461683,9.069e-05,2]
[346899483,1735351753591,-444.8936842,9.069e-05,2]
[346899484,1735351753611,-500.75038015,9.069e-05,2]
[346899485,1735351753631,-505.3142385,9.069e-05,2]
[346899486,1735351753651,-503.11511899,9.069e-05,2]
[346899487,1735351753671,-500.0,9.069e-05,2]
[346899488,1735351753691,-501.58592017,9.069e-05,2]
[346899489,1735351753712,-506.78715455,9.069e-05,2]
[346899490,1735351753731,-501.96437622,9.069e-05,2]
[346899491,1735351753751,-501.64212445,9.069e-05,2]
[346899492,1735351753771,-509.49118221,9.069e-05,2]
[346899493,1735351753792,-501.19444661,9.069e-05,2]
[346899494,1735351753812,-515.83895562,9.069e-05,2]
[346899495,1735351753833,-502.42701329,9.069e-05,2]
[346899496,1735351753852,-502.68727643,9.069e-05,2]
[346899497,1735351753872,-505.14597039,9.069e-05,2]
[346899498,1735351753892,-267.60930738,9.069e-05,2]
[346899499,1735351753912,-508.12072627,9.069e-05,2]
[346899500,1735351753931,-503.03156066,9.069e-05,2]
[346899501,1735351753951,-505.53260887,9.069e-05,2]
[346899502,1735351753972,-507.06642463,9.069e-05,2]
[346899503,1735351753992,-508.5517399,9.069e-05,2]
[346899504,1735351754014,-504.2968186,9.069e-05,2]
[346899505,1735351754034,-503.76193013,9.069e-05,2]
[346899506,1735351754055,-503.46576888,9.069e-05,2]
[346899507,1735351754076,-507.76017269,9.069e-05,2]
[346899508,1735351754095,-503.50870849,9.069e-05,2]
[346899509,1735351754115,-504.19776558,9.069e-05,2]
[346899510,1735351754136,-500.0,9.069e-05,2]
[346899511,1735351754156,-506.03974183,9.069e-05,2]
[346899512,1735351754176,-503.22735779,9.069e-05,2]
[346899513,1735351754198,-500.0,9.069e-05,2]
[346899514,1735351754219,-503.77901429,9.069e-05,2]
[346899515,1735351754240,-500.0,9.069e-05,2]
[346899516,1735351754260,-501.57398472,9.069e-05,2]
[346899517,1735351754281,-500.0,9.069e-05,2]
[346899518,1735351754301,-197.34369554,9.069e-05,2]
[346899519,1735351754322,-505.6889392,9.069e-05,2]
[346899520,1735351754342,-503.98585372,9.069e-05,2]
[346899521,1735351754363,-500.0,9.069e-05,2]
[346899522,1735351754383,-501.08769909,9.069e-05,2]
[346899523,1735351754403,-581.2810578,9.069e-05,2]
[346899524,1735351754424,-574.73373887,9.069e-05,2]
[346899525,1735351754445,-553.76395915,9.069e-05,2]
[346899526,1735351754466,-509.62497067,9.069e-05,2]
[346899527,1735351754486,-504.17401231,9.069e-05,2]
[346899528,1735351754510,-609.98882252,9.069e-05,2]
[346899529,1735351754531,-500.0,9.069e-05,2]
[346899530,1735351754553,-507.25396928,9.069e-05,2]
[346899531,1735351754573,-505.02862082,9.069e-05,2]
[346899532,1735351754595,-500.0,9.069e-05,2]
[346899533,1735351754615,-501.2891842,9.069e-05,2]
[346899534,1735351754636,-502.76494433,9.069e-05,2]
[346899535,1735351754656,-501.46889827,9.069e-05,2]
[346899536,1735351754680,-564.85682985,9.069e-05,2]
[346899537,1735351754701,-354.0739151,9.069e-05,2]
[346899538,1735351754722,-501.28592186,9.07e-05,2]
[346899539,1735351754743,-507.4433533,9.07e-05,2]
[346899540,1735351754763,-502.55843687,9.07e-05,2]
[346899541,1735351754784,-503.21971003,9.07e-05,2]
[346899542,1735351754804,-503.14614762,9.07e-05,2]
[346899543,1735351754825,-506.70259574,9.07e-05,2]
[346899544,1735351754848,-510.28011879,9.07e-05,2]
[346899545,1735351754868,-502.87896353,9.07e-05,2]
[346899546,1735351754889,-502.05298476,9.07e-05,2]
[346899547,1735351754911,-502.44024829,9.07e-05,2]
[346899548,1735351754932,-502.27652729,9.07e-05,2]
[346899549,1735351754954,-501.73719282,9.07e-05,2]
[346899550,1735351754974,-502.57302151,9.07e-05,2]
[346899551,1735351754997,-505.11018647,9.07e-05,2]
[346899552,1735351755017,-502.8024777,9.07e-05,2]
[346899553,1735351755037,-503.79699481,9.07e-05,2]
[346899554,1735351755058,-501.90484968,9.07e-05,2]
[346899555,1735351755079,-508.28729545,9.07e-05,2]
[346899556,1735351755100,-508.17629953,9.07e-05,2]
[346899557,1735351755120,-501.10685675,9.07e-05,2]
[346899558,1735351755141,-503.81086254,9.07e-05,2]
[346899559,1735351755163,-500.0,9.07e-05,2]
[346899560,1735351755183,-501.43282737,9.07e-05,2]
[346899561,1735351755204,-501.2393322,9.07e-05,2]
[346899562,1735351755226,-506.49087918,9.07e-05,2]
[346899563,1735351755249,-504.15980462,9.07e-05,2]
[346899564,1735351755269,-501.85199262,9.07e-05,2]
[346899565,1735351755289,-504.7523537,9.07e-05,2]
[346899566,1735351755310,-502.5410955,9.07e-05,2]
[346899567,1735351755331,-504.84352437,9.07e-05,2]
[346899568,1735351755350,-504.61169402,9.07e-05,2]
[346899569,1735351755372,-157.34541806,9.07e-05,2]
[346899570,1735351755393,-509.68267112,9.07e-05,2]
[346899571,1735351755413,-503.37113645,9.07e-05,2]
[346899572,1735351755433,-162.78630853,9.07e-05,2]
[346899573,1735351755454,-506.53766045,9.07e-05,2]
[346899574,1735351755477,-504.39487205,9.07e-05,2]
[346899575,1735351755498,-507.72062285,9.07e-05,2]
[346899576,1735351755522,-504.1854169,9.07e-05,2]
[346899577,1735351755542,-214.27216354,9.07e-05,2]
[346899578,1735351755564,-501.60583812,9.07e-05,2]
[346899579,1735351755592,-506.32835611,9.07e-05,2]
[346899580,1735351755613,-504.43042868,9.07e-05,2]
[346899581,1735351755634,-500.0,9.07e-05,2]
[346899582,1735351755657,-507.83652613,9.07e-05,2]
[346899583,1735351755679,-509.66207869,9.07e-05,2]
[346899584,1735351755700,-506.95599755,9.07e-05,2]
[346899585,1735351755722,-639.14640029,9.07e-05,2]
[346899586,1735351755744,-508.81817409,9.07e-05,2]
[346899587,1735351755766,-510.16374617,9.07e-05,2]
[346899588,1735351755788,-503.84125952,9.07e-05,2]
[346899589,1735351755808,-507.74509631,9.07e-05,2]
[346899590,1735351755829,-500.0,9.07e-05,2]
[346899591,1735351755850,-206.02463269,9.07e-05,2]
[346899592,1735351755871,-606.24833188,9.07e-05,2]
[346899593,1735351755891,-505.93695909,9.07e-05,2]
[346899594,1735351755912,-508.27386223,9.07e-05,2]
[346899595,1735351755932,-503.52850864,9.07e-05,2]
[346899596,1735351755952,-504.48085262,9.07e-05,2]
[346899597,1735351756062,-502.68339736,9.07e-05,2]
[346899598,1735351756084,-500.0,9.07e-05,2]
[346899599,1735351756106,-500.0,9.07e-05,2]
[346899600,1735351756127,-502.08491691,9.07e-05,2]
[346899601,1735351756147,-506.68673816,9.07e-05,2]
[346899602,1735351756166,-208.59076338,9.07e-05,2]
[346899603,1735351756186,-508.27689588,9.07e-05,2]
[346899604,1735351756208,-506.15504219,9.07e-05,2]
[346899605,1735351756228,-504.69003096,9.07e-05,2]
[346899606,1735351756251,-500.0,9.07e-05,2]
[346899607,1735351756273,-593.88851726,9.07e-05,2]
[346899608,1735351756295,-49.26682247,9.07e-05,2]
[346899609,1735351756330,-459.87608564,9.07e-05,2]
[346899610,1735351756354,-624.31068234,9.07e-05,2]
[346899611,1735351756378,-502.17734692,9.07e-05,2]
[346899612,1735351756399,-504.43948996,9.07e-05,2]
[346899613,1735351756423,-551.71093898,9.07e-05,2]
[346899614,1735351756447,-508.73450403,9.07e-05,2]
[346899615,1735351756474,-506.23180706,9.07e-05,2]
[346899616,1735351756496,-505.79933709,9.07e-05,2]
[346899617,1735351756523,-503.56411124,9.07e-05,2]
[346899618,1735351756546,-502.49560266,9.07e-05,2]
[346899619,1735351756568,-505.4518144,9.07e-05,2]
[346899620,1735351756591,-500.76947949,9.07e-05,2]
[346899621,1735351756613,-504.89030749,9.07e-05,2]
[346899622,1735351756634,-500.0,9.07e-05,2]
[346899623,1735351756656,-502.72466066,9.07e-05,2]
[346899624,1735351756677,-502.56573066,9.07e-05,2]
[346899625,1735351756699,-506.33389351,9.07e-05,2]
[346899626,1735351756725,-507.69576642,9.07e-05,2]
[346899627,1735351756747,-503.99678608,9.07e-05,2]
[346899628,1735351756768,-501.5029652,9.07e-05,2]
[346899629,1735351756792,-503.70843042,9.07e-05,2]
[346899630,1735351756814,-503.49220932,9.07e-05,2]
[346899631,1735351756836,-501.82913076,9.07e-05,2]
[346899632,1735351756858,-503.5998713,9.07e-05,2]
[346899633,1735351756878,-505.59039308,9.07e-05,2]
[346899634,1735351756900,-500.0,9.07e-05,2]
[346899635,1735351756921,-150.43686423,9.07e-05,2]
[346899636,1735351756942,-503.79553836,9.07e-05,2]
[346899637,1735351756962,-504.8744336,9.07e-05,2]
[346899638,1735351756984,-504.39874916,9.07e-05,2]
[346899639,1735351757006,-509.37444203,9.07e-05,2]
[346899640,1735351757027,-500.0,9.07e-05,2]
[346899641,1735351757048,-500.0,9.07e-05,2]
[346899642,1735351757070,-508.70837665,9.07e-05,2]
[346899643,1735351757091,-507.1148611,9.07e-05,2]
[346899644,1735351757113,-500.0,9.07e-05,2]
[346899645,1735351757135,-509.15524044,9.07e-05,2]
[346899646,1735351757156,-604.06349603,9.07e-05,2]
[346899647,1735351757178,-516.62,9.342e-05,2]
[346899648,1735351757200,-519.55011867,9.342e-05,2]
[346899649,1735351757222,-330.98104685,9.342e-05,2]
[346899650,1735351757245,-500.0,9.342e-05,2]
[346899651,1735351757265,-507.04035277,9.343e-05,2]
[346899652,1735351757287,-510.39988912,9.343e-05,2]
[346899653,1735351757307,-504.47770424,9.343e-05,2]
[346899654,1735351757328,-506.12811061,9.343e-05,2]
[346899655,1735351757350,-201.01141713,9.343e-05,2]
[346899656,1735351757371,-506.54442538,9.343e-05,2]
[346899657,1735351757393,-500.0,9.343e-05,2]
[346899658,1735351757415,-343.19731962,9.343e-05,2]
[346899659,1735351757437,-500.0,9.343e-05,2]
[346899660,1735351757459,-500.0,9.343e-05,2]
[346899661,1735351757482,-500.0,9.343e-05,2]
[346899662,1735351757509,-153.72741739,9.343e-05,2]
[346899663,1735351757531,-614.81667958,9.343e-05,2]
[346899664,1735351757554,-500.0,9.343e-05,2]
[346899665,1735351757576,-500.0,9.343e-05,2]
[346899666,1735351757599,-167.10904392,9.343e-05,2]
[346899667,1735351757621,-485.10493563,9.343e-05,2]
[346899668,1735351757643,-500.0,9.343e-05,2]
[346899669,1735351757665,-257.07232275,9.343e-05,2]
[346899670,1735351757687,-500.0,9.343e-05,2]
[346899671,1735351757708,-569.55439717,9.343e-05,2]
[346899672,1735351757731,-505.82640576,9.343e-05,2]
[346899673,1735351757754,-500.0,9.343e-05,2]
[346899674,1735351757775,-315.6867697,9.343e-05,2]
[346899675,1735351757796,-158.03066727,9.343e-05,2]
[346899676,1735351757818,-503.48860913,9.343e-05,2]
[346899677,1735351757839,-235.8675122,9.343e-05,2]
[346899678,1735351757862,-500.0,9.343e-05,2]
[346899679,1735351757884,-500.0,9.343e-05,2]
[346899680,1735351757906,-500.0,9.343e-05,2]
[346899681,1735351757928,-500.0,9.343e-05,2]
[346899682,1735351757950,-500.0,9.343e-05,2]
[346899683,1735351757974,-500.0,9.343e-05,2]
[346899684,1735351757995,-500.0,9.343e-05,2]
[346899685,1735351758017,-506.59171763,9.343e-05,2]
[346899686,1735351758039,-233.69801327,9.343e-05,2]
[346899687,1735351758061,-500.0,9.343e-05,2]
[346899688,1735351758081,-374.10290276,9.344e-05,2]
[346899689,1735351758103,-287.95672972,9.344e-05,2]
[346899690,1735351758125,-593.6668534,9.344e-05,2]
[346899691,1735351758148,-500.0,9.344e-05,2]
[346899692,1735351758169,-385.79954241,9.344e-05,2]
[346899693,1735351758190,-338.73017138,9.344e-05,2]
[346899694,1735351758212,-605.14009789,9.344e-05,2]
[346899695,1735351758236,-500.0,9.344e-05,2]
[346899696,1735351758259,-500.0,9.344e-05,2]
[346899697,1735351758280,-309.41729222,9.344e-05,2]
[346899698,1735351758301,-309.35933481,9.344e-05,2]
[346899699,1735351758322,-491.53985651,9.445e-05,2]
[346899700,1735351758344,-500.0,9.616e-05,2]
[346899701,1735351758367,-336.12249725,9.617e-05,2]
[346899702,1735351758389,-540.07476905,9.617e-05,2]
[346899703,1735351758411,-500.0,9.617e-05,2]
[346899704,1735351758439,-447.84081045,9.617e-05,2]
[346899705,1735351758462,-573.88529708,9.617e-05,2]
[346899706,1735351758486,-390.55560518,9.617e-05,2]
[346899707,1735351758511,-419.62812539,9.617e-05,2]
[346899708,1735351758532,-500.0,9.617e-05,2]
[346899709,1735351758560,-177.24861594,9.617e-05,2]
[346899710,1735351758584,-500.0,9.617e-05,2]
[346899711,1735351758691,-250.800691,9.617e-05,2]
[346899712,1735351758713,-500.0,9.617e-05,2]
[346899713,1735351758739,-300.17214945,9.617e-05,2]
[346899714,1735351758762,-500.0,9.617e-05,2]
[346899715,1735351758784,-431.9199228,9.617e-05,2]
[346899716,1735351758807,-500.0,9.617e-05,2]
[346899717,1735351758828,-495.8265444,9.617e-05,2]
[346899718,1735351758851,-500.0,9.618e-05,2]
[346899719,1735351758873,-500.0,9.618e-05,2]
[346899720,1735351758895,-511.26269118,9.618e-05,2]
[346899721,1735351764517,182.2601854,9.069e-05,2]
[346899722,1735351764539,36.89270027,9.069e-05,2]
[346899723,1735351773300,500.0,9.068e-05,2]
[346899724,1735351773610,500.0,9.342e-05,2]
[346899725,1735351773736,289.04260507,9.069e-05,2]
[346899726,1735351773816,250.19509715,9.616e-05,2]
[346899727,1735351789937,501.81377012,9.069e-05,2]
[346899728,1735351795780,250.896116,9.344e-05,2]
[346899729,1735351798944,250.896116,9.344e-05,2]
[346899730,1735351799778,500.0,9.068e-05,2]
[346899731,1735351801883,510.29900792,9.068e-05,2]
[346899734,1735351807305,500.0,9.069e-05,2]
[346899768,1735351832297,-500.0,9.827e-05,2]
[346899769,1735351832307,-408.60738366,9.891e-05,2]
[346899770,1735351832316,-425.04283982,9.891e-05,2]
[346899771,1735351832325,-500.0,9.891e-05,2]
[346899772,1735351832335,-500.0,9.891e-05,2]
[346899773,1735351832344,-365.61708306,9.891e-05,2]
[346899774,1735351832353,-603.38136881,9.891e-05,2]
[346899775,1735351832362,-1748.86337235,9.891e-05,2]
[346899776,1735351832371,-240.10029298,9.892e-05,2]
[346899777,1735351832380,-452.29304425,9.999e-05,2]
[346899779,1735351832390,-500.0,0.00010099,2]
[346899781,1735351832399,-503.67783582,0.00010099,2]
[346899783,1735351832408,-529.38639034,0.00010099,2]
[346899785,1735351832418,-500.0,0.00010099,2]
[346899786,1735351832427,-500.0,0.00010099,2]
[346899788,1735351832436,-500.0,0.00010101,2]
[346899790,1735351832446,-553.30000001,0.00010165,2]
[346899792,1735351832456,-602.56962272,0.00010165,2]
[346899794,1735351832465,-500.0,0.00010269,2]
[346899796,1735351832474,-543.44631844,0.00010269,2]
[346899798,1735351832483,-500.0,0.00010373,2]
[346899800,1735351832493,-500.0,0.00010373,2]
[346899801,1735351832502,-337.901201,0.00010373,2]
[346899803,1735351832512,-500.0,0.00010375,2]
[346899805,1735351832521,-500.0,0.00010647,2]
[346899806,1735351832535,-500.0,0.00010649,2]
[346899808,1735351832545,-304.46,0.00010921,2]
[346899810,1735351832554,-500.0,0.00010923,2]
[346899812,1735351832564,-151.0,0.00010959,2]
[346899814,1735351832575,-151.0,0.00010959,2]
[346899816,1735351832585,-151.0,0.00010959,2]
[346899818,1735351832595,-151.0,0.00010959,2]
[346899820,1735351832605,-151.0,0.00010959,2]
[346899822,1735351832614,-151.0,0.00010959,2]
[346899824,1735351832624,-151.0,0.00010959,2]
[346899826,1735351832633,-160.64522,0.00010959,2]
[346899828,1735351832642,-160.64522,0.00010959,2]
[346899830,1735351832652,-161.031216,0.00010959,2]
[346899832,1735351832661,-161.031216,0.00010959,2]
[346899834,1735351832670,-887.0594786,0.00011013,2]
[346899836,1735351832679,-500.0,0.00011195,2]
[346899837,1735351832690,-500.0,0.00011197,2]
[346899838,1735351832699,-500.0,0.00011471,2]
[346899839,1735351832708,-500.0,0.00011533,2]
[346899840,1735351832718,-500.0,0.00011745,2]
[346899841,1735351832737,-591.34912453,0.00012019,2]
[346899842,1735351832749,-553.62002876,0.00012081,2]
[346899843,1735351832758,-152.015897,0.000129,2]
[346899844,1735351832767,-151.0,0.000129,2]
[346899845,1735351832776,-152.259096,0.000129,2]
[346899846,1735351832786,-151.0,0.000129,2]
[346899847,1735351832795,-151.0,0.000129,2]
[346899848,1735351832804,-744.189,0.00013015,2]
[346899849,1735351832814,-1012.35815242,0.00013698,2]
[346899850,1735351832824,-508.04414409,0.00013698,2]
[346899851,1735351832833,-276.869881,0.00013699,2]
[346899852,1735351832843,-500.0,0.00013699,2]
[346899853,1735351832853,-500.0,0.00013699,2]
[346899854,1735351832863,-484.3594443,0.00013699,2]
[346899855,1735351832872,-151.0,0.00013699,2]
[346899856,1735351832882,-404.004145,0.00013699,2]
[346899857,1735351832892,-404.004145,0.00013699,2]
[346899858,1735351833038,-151.0,0.00013699,2]
[346899859,1735351833049,-178.900818,0.00013699,2]
[346899860,1735351833059,-178.900818,0.00013699,2]
[346899861,1735351833069,-400.0,0.00013973,2]
[346899862,1735351833079,-151.0,0.00015475,2]
[346899863,1735351833089,-160.64522,0.00015475,2]
[346899864,1735351833099,-160.64522,0.00015475,2]
[346899865,1735351833109,-161.031216,0.00015475,2]
[346899866,1735351833118,-161.031216,0.00015475,2]
[346899867,1735351833128,-250.896116,0.00015475,2]
[346899868,1735351833138,-250.896116,0.00015475,2]
[346899869,1735351833148,-404.74149969,0.00015899,2]
[346899870,1735351833158,-718.86,0.00015999,2]
[346899871,1735351833167,-508.3415836,0.00015999,2]
[346899872,1735351833177,-500.0,0.00015999,2]
[346899873,1735351833187,-150.0,0.00016,2]
[346899874,1735351833197,-718.86,0.00016273,2]
[346899875,1735351833206,-500.0,0.00016273,2]
[346899876,1735351833214,-503.31879924,0.00016438,2]
[346899877,1735351833223,-500.0,0.00016438,2]
[346899878,1735351833232,-182.56303126,0.00016532,2]
[346899895,1735351838404,-500.0,0.00010269,2]
[346899896,1735351838413,-222.17846842,0.00016532,2]
[346899897,1735351838423,-718.86,0.00016547,2]
[346899898,1735351838432,-500.0,0.00016547,2]
[346899899,1735351838442,-718.86,0.00016821,2]
[346899900,1735351838451,-500.0,0.00016821,2]
[346899901,1735351838460,-718.86,0.00017095,2]
[346899902,1735351838470,-500.0,0.00017095,2]
[346899903,1735351838479,-404.74149968,0.00017166,2]
[346899904,1735351838488,-884.456,0.000172,2]
[346899905,1735351838498,-152.0,0.00017318,2]
[346899906,1735351838508,-718.86,0.00017369,2]
[346899907,1735351838517,-197.64114347,0.00017369,2]
[346899908,1735351838527,-394.0,0.00017428,2]
[346899909,1735351838540,-158.83369976,0.00017643,2]
[346899910,1735351838633,-92.57843944,0.00017643,2]
[346899923,1735351840286,-151.0,0.00013699,2]
[346899924,1735351840298,-467.4478608,0.00017643,2]
[346899925,1735351840307,-188.0,0.00017708,2]
[346899926,1735351840317,-404.74149968,0.00017799,2]
[346899927,1735351840326,-500.0,0.00017808,4]
[346899928,1735351840335,-718.86,0.00017917,2]
[346899929,1735351840345,-464.8262488,0.00017918,2]
[346899930,1735351840354,-395.13912444,0.00018,2]
[346899931,1735351840367,-788.74,0.00018,2]
[346899932,1735351840378,-3816.12087556,0.00018,2]
[346899933,1735351840389,-152.700818,0.00018,2]
[346899934,1735351840398,-151.0,0.00018,2]
[346899935,1735351840408,-171.613356,0.00018,2]
[346899936,1735351840418,-718.86,0.00018191,2]
[346899937,1735351840427,-5006.20427735,0.000182,2]
[346899938,1735351840436,-5000.0,0.000182,2]
[346899939,1735351840446,-5000.0,0.000182,2]
[346899940,1735351840455,-5000.0,0.000182,2]
[346899941,1735351840464,-5000.0,0.000182,2]
[346899942,1735351840473,-26131.21,0.000182,2]
[346899943,1735351840483,-7296.28,0.000182,2]
[346899944,1735351840492,-19379.37,0.000182,2]
[346899945,1735351840502,-151.0,0.000182,2]
[346899946,1735351840512,-151.0,0.000182,2]
[346899947,1735351840521,-151.0,0.000182,2]
[346899948,1735351840534,-151.0,0.000182,2]
[346899949,1735351840543,-151.0,0.000182,2]
[346899950,1735351840553,-404.004145,0.000182,2]
[346899951,1735351840562,-404.004145,0.000182,2]
[346899952,1735351840571,-151.0,0.000182,2]
[346899953,1735351840582,-178.900818,0.000182,2]
[346899954,1735351840592,-178.900818,0.000182,2]
[346899955,1735351840601,-152.987866,0.000182,2]
[346899956,1735351840611,-151.730201,0.000182,2]
[346899957,1735351840620,-151.0,0.000182,2]
[346899958,1735351840629,-151.0,0.000182,2]
[346899959,1735351840639,-151.0,0.000182,2]
[346899960,1735351840649,-151.0,0.000182,2]
[346899961,1735351840661,-160.64522,0.000182,2]
[346899962,1735351840672,-160.64522,0.000182,2]
[346899963,1735351840681,-161.031216,0.000182,2]
[346899964,1735351840701,-161.031216,0.000182,2]
[346899965,1735351840711,-191.506062,0.000182,2]
[346899966,1735351840720,-250.896116,0.000182,2]
[346899967,1735351840729,-250.896116,0.000182,2]
[346899968,1735351840739,-151.0,0.000182,2]
[346899969,1735351840749,-151.0,0.000182,2]
[346899970,1735351840758,-151.0,0.000182,2]
[346899971,1735351840768,-404.74149968,0.00018432,2]
[346899972,1735351840778,-718.86,0.00018465,2]
[346899973,1735351840787,-182.811,0.00018495,2]
[346899974,1735351840797,-150.0,0.00018495,2]
[346899975,1735351840806,-191.425,0.00018495,2]
[346899976,1735351840816,-251.543,0.00018495,2]
[346899977,1735351840826,-150.0,0.00018495,2]
[346899978,1735351840835,-534.0,0.00018495,2]
[346899979,1735351840844,-2127.0,0.00018495,2]
[346899980,1735351840854,-2355.0,0.00018495,2]
[346899981,1735351840863,-352.4094699,0.00018521,2]
[346899982,1735351840873,-352.4094699,0.00018521,2]
[346899983,1735351840883,-352.4094699,0.00018521,2]
[346899984,1735351840893,-278.8966577,0.00018521,2]
[346899985,1735351840903,-151.0,0.000186,2]
[346899986,1735351840913,-718.86,0.00018739,2]
[346899987,1735351840923,-218.4576854,0.00018795,2]
[346899988,1735351840933,-156.7958142,0.00018795,2]
[346899989,1735351840943,-1118.83586637,0.000189,2]
[346899990,1735351840953,-151.0,0.00018904,2]
[346899991,1735351840962,-151.0,0.00018904,2]
[346899992,1735351840973,-151.0,0.00018904,2]
[346899993,1735351840982,-151.0,0.00018904,2]
[346899994,1735351840992,-5000.0,0.00018904,7]
[346899995,1735351841001,-5000.0,0.00018904,7]
[346899996,1735351841011,-5000.0,0.00018904,7]
[346899997,1735351841020,-70866.72704933,0.00019,2]
[346899998,1735351841033,-1005.6745737,0.00019,2]
[346899999,1735351841046,-964.17957643,0.00019,2]
[346900000,1735351841059,-327.92561909,0.00019,2]
[346900020,1735351843282,-164.92882714,0.00018199,2]
[346900021,1735351843292,-227.82819922,0.00018199,2]
[346900022,1735351843301,-415.62990059,0.00018199,2]
[346900023,1735351843311,-465.75955537,0.00018199,2]
[346900024,1735351843320,-151.0,0.00018904,2]
[346900025,1735351843330,-9832.58422593,0.00019,2]
[346900026,1735351843340,-10000.0,0.00019,2]
[346900027,1735351843350,-151.0,0.00019,2]
[346900028,1735351843359,-279.482454,0.00019,2]
[346900029,1735351843369,-194.024937,0.00019,2]
[346900030,1735351843379,-152.78129,0.00019,2]
[346900031,1735351843388,-151.0,0.00019,2]
[346900032,1735351843398,-151.0,0.00019,2]
[346900033,1735351843407,-158.694881,0.00019,2]
[346900034,1735351843416,-404.004145,0.00019,2]
[346900035,1735351843426,-404.004145,0.00019,2]
[346900036,1735351843435,-151.0,0.00019,2]
[346900037,1735351843445,-178.900818,0.00019,2]
[346900038,1735351843455,-178.900818,0.00019,2]
[346900039,1735351843464,-302.63687509,0.00019,2]
[346900040,1735351843474,-151.0,0.00019,2]
[346900041,1735351843484,-151.0,0.00019,2]
[346900042,1735351843494,-151.0,0.00019,2]
[346900043,1735351843504,-160.64522,0.00019,2]
[346900044,1735351843514,-160.64522,0.00019,2]
[346900045,1735351843523,-161.031216,0.00019,2]
[346900046,1735351843534,-161.031216,0.00019,2]
[346900047,1735351843544,-250.896116,0.00019,2]
[346900048,1735351843554,-250.896116,0.00019,2]
[346900049,1735351843565,-151.0,0.00019,2]
[346900050,1735351843575,-151.0,0.00019,2]
[346900051,1735351843586,-151.0,0.00019,2]
[346900052,1735351843595,-718.86,0.00019013,2]
[346900053,1735351843606,-404.74149968,0.00019065,2]
[346900054,1735351843616,-27209.06773763,0.000191,2]
[346900055,1735351843713,-5330.21354987,0.000191,2]
[346900056,1735351843723,-500.0,0.00019178,6]
[346900057,1735351843733,-234.383864,0.00019178,2]
[346900058,1735351843744,-302.63687509,0.0001919,2]
[346900059,1735351843753,-222.796994,0.00019199,2]
[346900060,1735351843763,-151.0,0.00019199,2]
[346900061,1735351843772,-169.87278138,0.00019199,2]
[346900062,1735351843781,-760.44095277,0.000192,2]
[346900063,1735351843795,-3244.89084696,0.000192,2]
[346900064,1735351843806,-10174.30642967,0.000192,2]
[346900065,1735351844015,501.36117921,9.069e-05,2]
[346900066,1735351845186,549.13,9.068e-05,2]
[346900119,1735351846374,-500.0,0.000192,2]
[346900124,1735351846406,-20.0,0.000192,2]
[346900457,1735351849849,501.58079842,9.069e-05,2]
[346900529,1735351873958,504.44204796,9.068e-05,2]
[346900530,1735351885942,505.64032406,9.069e-05,2]
[346900531,1735351891806,503.7199099,9.069e-05,2]
[346900532,1735351893016,505.08049378,9.068e-05,2]
[346900533,1735351910772,589.78,9.068e-05,2]
[346900534,1735351914846,500.0,9.068e-05,2]
[346900535,1735351916707,500.0,9.068e-05,2]
[346900536,1735351917971,501.82662371,9.069e-05,2]
[346900537,1735351918662,500.0,9.068e-05,2]
[346900538,1735351920922,500.0,9.068e-05,2]
[346900539,1735351926850,500.0,9.068e-05,2]
[346900540,1735351927400,500.0,9.342e-05,2]
[346900541,1735351927654,647.1,9.616e-05,2]
[346900542,1735351929551,500.0,9.068e-05,2]
[346900543,1735351948103,174.684043,8.978e-05,2]
[346900544,1735351962928,156.73515065,8.977e-05,2]
[346900545,1735352057615,300.0,8.976e-05,2]
[346900548,1735352356971,24900.0,8.479e-05,2]
[346900549,1735352369427,531.2717751,8.479e-05,2]
[346900551,1735352661227,3753.1622109,8.272e-05,2]
[346900556,1735352826133,-300.0,9.064e-05,2]
[346900557,1735352826158,-500.0,9.065e-05,2]